Cogmind - Beta 16 @@@ ROGUE MODE // 2025.11.04 @ 23:38:02 Player: Naughtyusername Result: Self-destructed Performance ------------- Evolutions (3) 1500 Regions Visited (7) 1400 Robots Destroyed (29) 145 Value Destroyed (696) 696 Prototype IDs (5) 100 Alien Tech Used (0) 0 Bonus (200) 200 TOTAL SCORE: 4041 Bonus ------- Pacifist 200 Cogmind --------- Core Integrity 508/700 Matter 68/300 Energy 275/275 System Corruption 13% Temperature Cool (77) Movement Hovering (170) Ox2 Location -7/Factory Parts ------- > --- POWER (1) -------- Deuterium Engine > --- PROPULSION (5) --- Cooled Airjet > --- UTILITY (5) ------ Improved Heat Sink (fused) Medium Storage Unit Improved Sensor Array Improved Signal Interpreter Advanced Targeting Computer > --- WEAPON (2) ------- (None) > --- INVENTORY (10) --- Advanced Terrain Scan Processor Core Analyzer Transmission Jammer Cooled Particle Cannon Cooled Particle Cannon Cooled Particle Cannon Advanced Assault Cannon Missile Launcher Plasma Cutter Powered Hammer Peak State ------------ > --- POWER ------------ Deuterium Engine > --- PROPULSION ------- Improved Hover Unit Improved Hover Unit Improved Hover Unit Gravmag System Cooled Airjet > --- UTILITY ---------- Improved Heat Sink Medium Storage Unit Improved Sensor Array Improved Signal Interpreter Advanced Targeting Computer > --- WEAPON ----------- Cooled Particle Cannon Cooled Particle Cannon > --- INVENTORY -------- Advanced Terrain Scan Processor Core Analyzer Transmission Jammer Reflective Plating Cooled Particle Cannon Advanced Assault Cannon Rocket Launcher Missile Launcher Plasma Cutter [Rating: 44] Favorites ----------- Power Deuterium Engine Engine Deuterium Engine Power Core Micro Nuclear Core Propulsion Improved Hover Unit Hover Unit Improved Hover Unit Utility Improved Heat Sink Device Improved Heat Sink Storage Small Storage Unit Processor Improved Signal Interpreter Protection Backup Plating I Weapon Cooled Particle Cannon Energy Gun Improved Medium Laser Energy Cannon Cooled Particle Cannon Ballistic Gun Enhanced Autogun Ballistic Cannon Advanced Assault Cannon Launcher Missile Launcher Slashing Weapon Greatsword Build | -11 -10 -9 -9 -9 -8 -8 -7 ------- Run | Yrd Mat Mat Min Exi Min Mat Fac Slots Evolved 6 | . . 2 . . . 2 2 Power . | . . . . . . . . Propulsion 3 | . . 1 . . . 1 1 Utility 3 | . . 1 . . . 1 1 Weapon . | . . . . . . . . Parts Attached 35 | . . . 1 . . 3 31 Power 4 | . . . . . . . 4 Engine 2 | . . . . . . . 2 Core 2 | . . . . . . . 2 Reactor . | . . . . . . . . Propulsion 11 | . . . . . . 2 9 Treads . | . . . . . . . . Leg . | . . . . . . . . Wheel . | . . . . . . . . Hover 11 | . . . . . . 2 9 Flight . | . . . . . . . . Utility 8 | . . . 1 . . . 7 Device 2 | . . . . . . . 2 Storage 2 | . . . . . . . 2 Processor 4 | . . . 1 . . . 3 Hackware . | . . . . . . . . Protection . | . . . . . . . . Artifact . | . . . . . . . . Weapon 12 | . . . . . . 1 11 Energy Gun 1 | . . . . . . . 1 Energy Cannon 3 | . . . . . . . 3 Ballistic Gun 1 | . . . . . . . 1 Ballistic Cannon 3 | . . . . . . . 3 Launcher 3 | . . . . . . 1 2 Special Weapon . | . . . . . . . . Impact Weapon . | . . . . . . . . Slashing Weapon 1 | . . . . . . . 1 Piercing Weapon . | . . . . . . . . Special Melee Weapon . | . . . . . . . . Unidentified Prototypes 5 | . . . . . . . 5 Corrupted Parts 1 | . . . . . . . 1 System Corruption 2 | . . . . . . . 2 Parts Lost 13 | . . . . . 1 1 11 Power 1 | . . . . . . . 1 Propulsion 7 | . . . . . . 1 6 Utility 3 | . . . . . 1 . 2 Weapon 2 | . . . . . . . 2 Highest Loss Streak 3 | . . . . . 1 1 3 To Critical Strikes . | . . . . . . . . Average Backups 5 | . 2 2 2 3 3 4 7 Power . | . 1 1 1 1 1 1 . Propulsion . | . . . . . . . . Utility 1 | . 1 1 1 1 1 1 2 Weapon 2 | . . . . 1 1 1 3 Tool/Special . | . . . . . . . . Unused Backups 10 | . . . 1 . . . 9 Power 1 | . . . . . . . 1 Propulsion . | . . . . . . . . Utility 5 | . . . 1 . . . 4 Weapon 3 | . . . . . . . 3 Tool/Special 1 | . . . . . . . 1 Average Slot Usage (%) 56 | . . . 4 11 10 30 80 Engine 3 | . . . . . . 4 5 Hover 22 | . . . . . . 16 32 Device 6 | . . . . . . . 9 Storage 3 | . . . . . . . 5 Processor 8 | . . . 4 11 10 . 10 Protection 2 | . . . . . . 8 2 Energy Gun 1 | . . . . . . 1 2 Energy Cannon 2 | . . . . . . . 3 Ballistic Cannon 2 | . . . . . . . 4 Peak Build Rating 44 | . . . 1 1 1 9 44 Average Rating 20 | . . . . 1 . 3 30 On Entrance 1 | . . . . 1 1 . 6 Avg Prop Armor Cover (%) 17 | . . . . . . 16 18 Naked Turns 260 | . 47 93 39 . 9 72 . Heaviest Build 35 | . . . . . . 5 35 Greatest Support 38 | 3 3 3 3 3 3 24 38 Greatest Overweight (x) 9 | . . . . . . . 9 Average Overweight (x) . | . . . . . . . . Largest Inventory Capacity 10 | 5 5 5 5 5 5 5 10 Average Capacity 7 | 5 5 5 5 5 5 5 8 Most Carried 10 | 2 2 2 4 3 3 5 10 Average Carried 6 | 1 2 2 2 3 3 4 7 Final Capacity 10 | 5 5 5 5 5 5 5 10 Final Carried 10 | 2 2 2 3 3 3 5 10 Class Distribution -------------------- 100% | Mutant Dominant Class ---------------- Mutant | -10/Materials Mutant | -9/Materials Mutant | -9/Mines Mutant | -9/Exiles Mutant | -8/Mines Mutant | -8/Materials Mutant | -7/Factory Resources | -11 -10 -9 -9 -9 -8 -8 -7 ----------- Run | Yrd Mat Mat Min Exi Min Mat Fac Matter Collected 659 | 73 . . 31 . 20 . 535 Remotely . | . . . . . . . . Salvage Created 744 | . . . . . 20 14 710 Parts 50 | . . . . . 2 6 42 Haulers Intercepted 6 | . . . . . . . 6 Recyclers Shooed . | . . . . . . . . Parts Field Recycled . | . . . . . . . . Retrieved Matter . | . . . . . . . . Parts Self-Destructed . | . . . . . . . . Prevented . | . . . . . . . . Parts Restored . | . . . . . . . . Kills | -11 -10 -9 -9 -9 -8 -8 -7 ------- Run | Yrd Mat Mat Min Exi Min Mat Fac Combat Hostiles Destroyed 14 | . . . . . 1 3 10 Melee 2 | . . . . . 1 . 1 Cannons 3 | . . . . . . . 3 AOE 9 | . . . . . . 3 6 Classes Destroyed 11 | . . . . . 1 1 9 Worker 4 | . . . . . . . 4 Builder 2 | . . . . . . . 2 Tunneler 1 | . . . . . . 1 . Hauler 6 | . . . . . . . 6 Mechanic 1 | . . . . . . . 1 Operator 1 | . . . . . . . 1 Swarmer 8 | . . . . . 1 3 4 Grunt 2 | . . . . . . . 2 Sentry 1 | . . . . . . . 1 Hunter 1 | . . . . . . . 1 Programmer 2 | . . . . . . . 2 Best Kill Streak 6 | . . . . . 1 4 6 Combat Bots Only 5 | . . . . . 1 3 5 Max Kills in Single Turn 4 | . . . . . 1 2 4 Gunslinging . | . . . . . . . . Exploded 3 | . . . . . . 2 3 Melee 1 | . . . . . 1 . 1 Uniques/NPCs Destroyed . | . . . . . . . . Combat | -11 -10 -9 -9 -9 -8 -8 -7 -------- Run | Yrd Mat Mat Min Exi Min Mat Fac Hostile Shots Fired 154 | . 8 20 . . 17 44 65 Missed 62 | . 2 12 . . 5 17 26 Hits 92 | . 6 8 . . 12 27 39 Projectile 92 | . 6 8 . . 12 27 39 Critical Strikes 2 | . . . . . . 1 1 Damage Taken 1835 | . 142 123 . . 201 366 1003 Core 865 | . 142 123 . . 196 212 192 Absorbed by Shields . | . . . . . . . . Core Remaining (%) 56 | 100 43 . . . 20 61 . Volleys Fired 71 | . . . . . . 3 68 Largest 2 | . . . . . . 1 2 Hottest 96 | . . . . . . 33 96 Shots Fired 85 | . . . . . . 3 82 Gun 15 | . . . . . . . 15 Cannon 58 | . . . . . . . 58 Launcher 12 | . . . . . . 3 9 Special . | . . . . . . . . Kinetic 32 | . . . . . . . 32 Thermal 41 | . . . . . . . 41 Explosive 9 | . . . . . . 3 6 Electromagnetic 3 | . . . . . . . 3 Robot Hit Streak 10 | . . . . . . 2 10 Robot Miss Streak 3 | . . . . . . . 3 Penetration Max . | . . . . . . . . Secondary Targets . | . . . . . . . . Shots Hit Robots 35 | . . . . . . 2 33 Core Hits 46 | . . 1 . . 7 3 35 Critical Kills . | . . . . . . . . Critical Parts Destroyed . | . . . . . . . . Critical Strikes 1 | . . . . . . . 1 Burn 1 | . . . . . . . 1 Melee Attacks 6 | . . . . . . . 6 Impact . | . . . . . . . . Slashing 6 | . . . . . . . 6 Piercing . | . . . . . . . . Sneak Attacks . | . . . . . . . . Combat Hostiles . | . . . . . . . . Follow-up Attacks . | . . . . . . . . Damage Inflicted 2091 | . 12 27 . . 66 381 1605 Guns 133 | . . . . . . . 133 Cannons 561 | . . . . . . . 561 Explosions 1224 | . . . . . . 368 856 Melee 55 | . . . . . . . 55 Ramming 118 | . 12 27 . . 66 13 . Kinetic 241 | . . . . . . . 241 Thermal 647 | . . . . . . . 647 Explosive 916 | . . . . . . 368 548 Electromagnetic 114 | . . . . . . . 114 Impact . | . . . . . . . . Slashing 55 | . . . . . . . 55 Piercing . | . . . . . . . . Highest Corruption 13 | . . 1 1 1 2 . 13 Average Corruption 3 | . . 1 1 1 1 . 3 Corruption Purged . | . . . . . . . . Corruption Blocked . | . . . . . . . . Effects 28 | . . . . 1 2 . 25 Message Errors 5 | . . . . . 1 . 4 Matter Fused 8 | . . . . 1 1 . 6 Heat Flow Errors 4 | . . . . . . . 4 Energy Discharges 6 | . . . . . . . 6 Parts Fused 1 | . . . . . . . 1 Data Loss (minor) 2 | . . . . . . . 2 Data Loss (major) 1 | . . . . . . . 1 Weapon Failures 1 | . . . . . . . 1 Overload Shots . | . . . . . . . . Overflow Damage 42 | . . . . . . 42 . Projectiles . | . . . . . . . . Explosions 42 | . . . . . . 42 . Melee . | . . . . . . . . Knockbacks 1 | . . . . . . . 1 Impact . | . . . . . . . . Kinetic 1 | . . . . . . . 1 Secondary . | . . . . . . . . Self-Inflicted Damage 195 | . 6 12 . . 30 6 141 Shots 4 | . . . . . . . 4 Rammed 26 | . 1 8 . . 14 2 1 Targets Rammed 26 | . 1 8 . . 14 2 1 Kicked . | . . . . . . . . Crushed . | . . . . . . . . Highest Temperature 347 | . . . . . . . 347 Average Temperature 93 | . . . . . . . 93 Received Heat Transfer 348 | . 36 48 . . 63 108 93 Siege Activations . | . . . . . . . . Martial Activations . | . . . . . . . . Shielding Activations . | . . . . . . . . Robots Disrupted . | . . . . . . . . Combat Hostiles . | . . . . . . . . Robots Corrupted . | . . . . . . . . Combat Hostiles . | . . . . . . . . Parts Fried . | . . . . . . . . Impact Corruptions . | . . . . . . . . Robots Melted . | . . . . . . . . Combat Hostiles . | . . . . . . . . Parts Melted 3 | . . . . . . . 3 Heat Transferred 914 | . . . . . . . 914 Parts Sabotaged . | . . . . . . . . Parts Stolen . | . . . . . . . . Parts Stripped . | . . . . . . . . Power Chain Reactions 3 | . . . . . . . 3 Alert | -11 -10 -9 -9 -9 -8 -8 -7 ------- Run | Yrd Mat Mat Min Exi Min Mat Fac Maximum Alert Level 1 | . . . . . . . 1 Low Security (%) 90 | 100 100 100 100 . 100 100 86 Level 1 9 | . . . . . . . 13 Level 2 . | . . . . . . . . Level 3 . | . . . . . . . . Level 4 . | . . . . . . . . Level 5 . | . . . . . . . . High Security . | . . . . . . . . Max Security . | . . . . . . . . Peak Influence 250 | . . 15 . . 90 164 250 Initial 60 | . . . . . . 35 60 Average 74 | . . 3 . . 16 57 98 Influence Increases 1008 | . . 15 . . 110 179 704 Destroy 0b10 Robot/C 280 | . . . . . 20 60 200 Destroy 0b10 Robot/NC 75 | . . . . . . 5 70 Destroy Leader 70 | . . . . . . 10 60 Successful Hack 43 | . . . . . . 12 31 Disable Machine 210 | . . . . . . 15 195 Destroy Structure 90 | . . . . . . 17 73 Partial Spotted 30 | . . 15 . . . 15 . Lose Combat Pursuer 210 | . . . . . 90 45 75 Influence Decreases 806 | . . 15 . . 20 135 636 Entered New Map 129 | . . . . . . 55 74 Time Decay 547 | . . 15 . . 10 70 452 Lost Part 130 | . . . . . 10 10 110 Squads Dispatched 10 | . 1 . . . . 1 8 Investigation 3 | . . . . . . . 3 Extermination 3 | . . . . . . . 3 Reinforcement 4 | . 1 . . . . 1 2 Assault . | . . . . . . . . Garrison . | . . . . . . . . Intercept . | . . . . . . . . Searches Triggered . | . . . . . . . . Construction Impeded 1 | . . . . . . . 1 Haulers Reinforced 1 | . . . . . . . 1 Active Scanning Responses . | . . . . . . . . Cargo Convoy Interrupts . | . . . . . . . . Stealth | -11 -10 -9 -9 -9 -8 -8 -7 --------- Run | Yrd Mat Mat Min Exi Min Mat Fac Distress Signals 2 | . . 1 . . . . 1 Communications Jammed . | . . . . . . . . Distress Signals . | . . . . . . . . Times Spotted 44 | . 4 4 . . 10 10 16 Peak Tracking Total 9 | . 3 4 . . 8 9 4 Tactical Retreats 5 | . . . . . 2 1 2 Traps | -11 -10 -9 -9 -9 -8 -8 -7 ------- Run | Yrd Mat Mat Min Exi Min Mat Fac Traps Triggered 4 | . 2 . . . . . 2 Indirectly . | . . . . . . . . Trap Hack Attempts . | . . . . . . . . Triggered . | . . . . . . . . Disarmed . | . . . . . . . . Reprogrammed . | . . . . . . . . Reused . | . . . . . . . . Traps Extracted . | . . . . . . . . Installed . | . . . . . . . . Triggered . | . . . . . . . . Machines | -11 -10 -9 -9 -9 -8 -8 -7 ---------- Run | Yrd Mat Mat Min Exi Min Mat Fac Machines Disabled 14 | . . . . . . 1 13 Max in Single Turn 4 | . . . . . . 1 4 Machines Repaired . | . . . . . . . . Machines Dismantled . | . . . . . . . . Machines Sabotaged . | . . . . . . . . Overloaded Fab Kills . | . . . . . . . . Hacking | -11 -10 -9 -9 -9 -8 -8 -7 --------- Run | Yrd Mat Mat Min Exi Min Mat Fac Machines Accessed 17 | . 1 . . 1 . 4 11 Terminals 9 | . . . . . . 3 6 Fabricators 3 | . . . . . . . 3 Repair Stations 3 | . 1 . . . . 1 1 Recycling Units 1 | . . . . . . . 1 Scanalyzers . | . . . . . . . . Garrison Access . | . . . . . . . . Total Hacks 46 | . 2 . . 1 . 10 33 Successful 22 | . . . . 1 . 5 16 Failed 24 | . 2 . . . . 5 17 Catastrophic 5 | . 1 . . . . 1 3 Database Lockouts . | . . . . . . . . Manual 23 | . . . . . . 6 17 Terminals 30 | . . . . . . 8 22 Fabricators 7 | . . . . . . . 7 Repair Stations 7 | . 2 . . . . 2 3 Recycling Units 1 | . . . . . . . 1 Scanalyzers . | . . . . . . . . Garrison Access . | . . . . . . . . Terminal Hacks 7 | . . . . 1 . 2 4 Record 1 | . . . . 1 . . . Branch Access Points 2 | . . . . . . 1 1 Terminal Index 1 | . . . . . . . 1 Hauler Manifests 1 | . . . . . . . 1 Zone Layout 2 | . . . . . . 1 1 Fabricator Hacks 3 | . . . . . . . 3 Network Status 3 | . . . . . . . 3 Repair Station Hacks 2 | . . . . . . 2 . Refit 2 | . . . . . . 2 . Recycling Unit Hacks . | . . . . . . . . Scanalyzer . | . . . . . . . . Garrison Access Hacks . | . . . . . . . . Unauthorized Hacks 10 | . . . . . . 1 9 Terminals 10 | . . . . . . 1 9 Track 2 | . . . . . . . 2 Botnet 4 | . . . . . . 1 3 Operators 1 | . . . . . . . 1 Skim 3 | . . . . . . . 3 Fabricators . | . . . . . . . . Repair Stations . | . . . . . . . . Recycling Units . | . . . . . . . . Scanalyzers . | . . . . . . . . Garrison Access . | . . . . . . . . Data Cores Recovered . | . . . . . . . . Used . | . . . . . . . . Hacking Detections 15 | . 1 . . . . 3 11 Full Trace Events 3 | . 1 . . . . . 2 Feedback Events 2 | . . . . . . . 2 Corruption 2 | . . . . . . . 2 Feedback Blocked . | . . . . . . . . Robot Schematics Acquired . | . . . . . . . . Robots Built . | . . . . . . . . Authchips . | . . . . . . . . Time . | . . . . . . . . Total Robot Build Rating . | . . . . . . . . Part Schematics Acquired . | . . . . . . . . Parts Built . | . . . . . . . . Authchips . | . . . . . . . . Time . | . . . . . . . . Total Part Build Rating . | . . . . . . . . Part Studies Acquired . | . . . . . . . . Parts Repaired . | . . . . . . . . Time . | . . . . . . . . Parts Recycled . | . . . . . . . . Recycled Matter . | . . . . . . . . Retrieved Matter . | . . . . . . . . Retrieved Components . | . . . . . . . . Parts Scanalyzed . | . . . . . . . . Part Schematics Acquired . | . . . . . . . . Parts Damaged . | . . . . . . . . Bothacking | -11 -10 -9 -9 -9 -8 -8 -7 ------------ Run | Yrd Mat Mat Min Exi Min Mat Fac Used RIF Installer . | . . . . . . . . Robots Hacked . | . . . . . . . . Non-combat . | . . . . . . . . Combat . | . . . . . . . . Robot Hacks Applied . | . . . . . . . . Relay Couplers Released . | . . . . . . . . Fabnet Peak Effective % . | . . . . . . . . Robots Rewired . | . . . . . . . . Allies Hacked . | . . . . . . . . Hacks Repelled . | . . . . . . . . Allies | -11 -10 -9 -9 -9 -8 -8 -7 -------- Run | Yrd Mat Mat Min Exi Min Mat Fac Total Allies . | . . . . . . . . Largest Group . | . . . . . . . . Highest-Rated Group . | . . . . . . . . Highest-Rated Ally . | . . . . . . . . Total Orders . | . . . . . . . . Ally Attacks . | . . . . . . . . Total Damage . | . . . . . . . . Kills . | . . . . . . . . Allies Corrupted . | . . . . . . . . Allies Melted . | . . . . . . . . Intel | -11 -10 -9 -9 -9 -8 -8 -7 ------- Run | Yrd Mat Mat Min Exi Min Mat Fac Active Infowar (turns) 685 | . . . . . . . 685 Sensors 685 | . . . . . . . 685 Robot Analysis Total . | . . . . . . . . Derelict Logs Recovered 1 | . . . 1 . . . . Drone Launches . | . . . . . . . . Drone Recoveries . | . . . . . . . . Exploration | -11 -10 -9 -9 -9 -8 -8 -7 ------------- Run | Yrd Mat Mat Min Exi Min Mat Fac Turns Passed 1701 | 20 47 93 86 68 116 141 1130 Spaces Moved 2265 | 36 92 103 154 135 204 247 1294 Core 1098 | 36 92 103 154 135 204 242 132 Treads . | . . . . . . . . Legs . | . . . . . . . . Wheels . | . . . . . . . . Hover 1167 | . . . . . . 5 1162 Flight . | . . . . . . . . Fastest Speed 42 | 50 50 50 50 50 50 50 42 Average Speed 56 | 50 50 50 50 50 50 50 61 Slowest Speed 500 | 50 50 50 50 50 50 72 500 Overloaded Moves . | . . . . . . . . Propulsion Burnouts . | . . . . . . . . Robots Hopped . | . . . . . . . . Potential Cave-ins 2 | . . . . . . . 2 Cave-ins Triggered 1 | . . . . . . . 1 Exploration Rate (%) 30 | 3 29 19 23 52 61 30 28 Regions Visited 7 Branch Regions 3 Pre-discovered Areas 1 | . . . . 1 . . . Known Exits Taken . | . . . . . . . . Unknown Exits Taken 7 | 1 1 1 1 1 1 1 . Scrap Searched 2 | . . . 1 . 1 . . Spaces Dug 11 | . . . . . . . 11 Terrain Destroyed 112 | . . . . . . 16 96 Melee 4 | . . . . . . . 4 Projectile 13 | . . . . . . . 13 AOE 95 | . . . . . . 16 79 Terrain Rammed . | . . . . . . . . Walls Destroyed . | . . . . . . . . Machines Disabled . | . . . . . . . . Actions | -11 -10 -9 -9 -9 -8 -8 -7 --------- Run | Yrd Mat Mat Min Exi Min Mat Fac Total 2570 | 37 92 143 162 134 217 261 1524 Wait 109 | . . 33 . . . . 76 Move 2258 | 35 91 102 153 134 203 246 1294 Hop . | . . . . . . . . Pick Up 20 | 2 . . 2 . . 2 14 Fast Attach 23 | . . . 1 . . 2 20 Attach 8 | . . . . . . 1 7 Detach 6 | . . . . . . 1 5 Swap 14 | . . . . . . . 14 Drop 24 | . . . 1 . . 4 19 Fire 71 | . . . . . . 3 68 Melee 6 | . . . . . . . 6 Ram 26 | . 1 8 . . 14 2 1 Kick . | . . . . . . . . Crush . | . . . . . . . . Escape Stasis . | . . . . . . . . Rewire 5 | . . . 5 . . . . Trap . | . . . . . . . . Miscellaneous . | . . . . . . . . Route ------- -11/Scrapyard -10/Materials -9/Materials -9/Mines -9/Exiles -8/Mines -8/Materials -7/Factory (discovered 4 exits: [*Fac] / Sto / *Low x2) History --------- Turn | Location | Event 2 | -11/Scrapyard | Met Revision 17 3 | -11/Scrapyard | Discovered new exit (range 16) 21 | -11/Scrapyard | Entered Materials 59 | -10/Materials | Discovered new exit (range 15) 68 | -10/Materials | Core integrity fell below 50% 68 | -10/Materials | Entered another Materials area 68 | -9/Materials | Evolved 2 slots: Propulsion x1, Utility x1 153 | -9/Materials | Discovered new exit (range 15) 161 | -9/Materials | Entered Mines 181 | -9/Mines | Met a Derelict bent on vengeance 240 | -9/Mines | Learned Materials emergency access door positions 245 | -9/Mines | Deemed a non-threat by the Exiles lab entrance 245 | -9/Mines | Discovered new exit (range 5) 247 | -9/Mines | Entered Exiles 261 | -9/Exiles | Met 8R-AWN 269 | -9/Exiles | Met EX-HEX 283 | -9/Exiles | Met EX-BIN 288 | -9/Exiles | Met EX-DEC 293 | -9/Exiles | Learned location of Zion (-7) 310 | -9/Exiles | Discovered new exit (range 10) 315 | -9/Exiles | Entered Mines 316 | -8/Mines | Build established: Mutant 410 | -8/Mines | Found a Scrap Suit stashed away for nefarious purposes 419 | -8/Mines | Core integrity fell below 50% 429 | -8/Mines | Discovered new exit (range 6) 431 | -8/Mines | Entered Materials 431 | -8/Materials | Evolved 2 slots: Propulsion x1, Utility x1 564 | -8/Materials | Discovered new exit (range 15) 572 | -8/Materials | Entered Factory 572 | -7/Factory | Evolved 2 slots: Propulsion x1, Utility x1 972 | -7/Factory | Identified exit to Storage 972 | -7/Factory | Identified exit to Lower Caves 1397 | -7/Factory | Discovered new exit (range 7) 1586 | -7/Factory | Lost 3 parts (2n1w) 1697 | -7/Factory | Crushed by falling debris 1697 | -7/Factory | System corruption reached 10% 1702 | -7/Factory | Self-destructed Last Messages --------------- 01646_ U-05 Engineer lays Concrete. 01647_ Acquired Cld. Airjet. 01647_ K-01 Serf collects debris. 01648_ U-05 Engineer lays Concrete. 01651_ K-01 Serf collects debris. 01651_ U-05 Engineer lays Concrete. 01657_ System corrupted: Component data lost. 01670_ The unstable cave ceiling collapses. 01683_ System corrupted: Energy discharge (-82). 01696_ G-47 Trooper destroyed. 01697_ The unstable cave ceiling collapses. 01697_ Crushed by falling debris. 01697_ Imp. Hover Unit destroyed. 01697_ System corrupted by crushing effect (+4). 01697_ Imp. Hover Unit destroyed. 01697_ System corrupted by crushing effect (+4). 01697_ Aluminum Leg crushed. 01698_ Acquired 44 matter. 01699_ System corrupted: Heat flow error (+182). 01700_ Greatsword destroyed. Map ----- +----------------------------------------------------+ | | | ?????????????????????????????????????????????????? | | ?????????????????????????????????????????????????? | | ?????????????????????????????????????????????????? | | ??????????????????????###################????????? | | ??????????????????????# + #????????? | | ??????????????????????# # """ """ #????????? | | ??????????????????????# # """ """ #????????? | | ??????????????????? # """ """ #????????? | | ??#????????????? # #????????? | | ??# ????????????? + ! #????????? | | ### ######??#+#####+###### ^# ! #????????? | | #### ### # # ! #????????? | | ## # """ # #######+#"##???????? | | # [ # ""F """" # #?????# ##"#######?? | | + # "" """" # p####### ### #?? | | # #* ## """ """" # #?# #?? | | # # [ # """ """" # #?# #?? | | # # # ### #?? | | ## # #= """" """" # ## #?? | | ## # ## """" """" + ## #?? | | ???# ## """" """" # g #####+##### | | ???# ##g """" """" # g a #??# | | ???# !## ########### ##?# | | ???# "######+################ #?# | | ???# ##????# #???##@[ ! # T" ### | | ???#""" ##????# ?? g! + " k | | ???#"R / ###???######## "T" ! # ### ###### | | ???#""" # ##?????????# # k #?# #????? | | ???# "" ## #####?????##+########## ##### ##?? " | | ???# ###"##"###????# #????????# #??# ### " | | #########+### #????# #????????# #??# > + " | | %% u ###### ######## ## ### " | | k ###+#### | | " ## #??? | | ## #??? | | ############+## ## #??? | | #########+### #?????????????###+#### #??? | | ????????????####+####????????????????????# #??? | | ?????????????????????????????????????????# #??? | | ?????????????????????????????????????????# #??? | | ?????????????????????????????????????????# #??? | | ?????????????????????????????????????????# #??? | | ?????????????????????????????????????????######??? | | ?????????????????????????????????????????????????? | | ?????????????????????????????????????????????????? | | ?????????????????????????????????????????????????? | | ?????????????????????????????????????????????????? | | ?????????????????????????????????????????????????? | | ?????????????????????????????????????????????????? | +----------------------------------------------------+ Best States ------------- Heat Dissipation 48 Energy Generation 15 Energy Capacity 275 Matter Stores 269 Matter Capacity 300 Sight Range 16 Robot Scan Range 15 Terrain Scan Density 10 Armor Coverage 160 Evasion (%) 56 Targeting Accuracy 8 Launcher Accuracy 20 Item Schematics ----------------- None Robot Schematics ------------------ None Fabricated ------------ Nothing Repaired ---------- Nothing Studied --------- None Alien Tech Used ----------------- None Achievements -------------- None Challenges ------------ None Game ------ Seed AssembledDrainedFacilitator Manual? 0 Play Time 00:20:24 Cumulative 508.9 hours Start 2025.11.04 @ 22:58:49 End 2025.11.04 @ 23:38:02 Sessions 2 Manual Loads 0 Difficulty Rogue Special Mode None Game No. 276 Rogue 276 Adventurer 0 Explorer 0 Win Type - Total 22 Types 13/1/5/1/0/0/0/1/1/0 Lore% 94 Gallery% 88 Achievement% 79 Wizard Run 0 Options --------- Layout 2 ASCII 0 Keyboard 1 Movement Vi Keybinds 0 Fullscreen 1 Font 28/Terminus Map View 50x52 Zoom Use 0% Tactical HUD 1 Map Filters NONE Filters NONE Steam 1 RUN: c8af345a-5f8f-42c7-afcf-393a27a06236